Cogmind - Beta 14 @@@ ROGUE MODE // 2025.03.02 @ 18:44:50 Player: me;3 Result: Destroyed by Y-45 Defender with Heavy Assault Rifle Performance ------------- Evolutions (1) 500 Regions Visited (3) 600 Robots Destroyed (8) 40 Value Destroyed (228) 228 Prototype IDs (0) 0 Alien Tech Used (0) 0 Bonus (0) 0 TOTAL SCORE: 1368 Bonus ------- None Cogmind --------- Core Integrity 0/400 Matter 290/300 Energy 99/100 System Corruption 11% Temperature Cool (0) Movement Core (150) Ox2 Location -9/Storage Parts ------- > --- POWER (1) -------- (None) > --- PROPULSION (2) --- (None) > --- UTILITY (4) ------ Sensor Array System Shield Drone Bay (2/2) > --- WEAPON (2) ------- (None) > --- INVENTORY (5) ---- Terrain Scan Processor Targeting Computer Field Recycling Unit (0) Improved Grenade Launcher Peak State ------------ > --- POWER ------------ Ion Engine > --- PROPULSION ------- Flight Unit VTOL Module > --- UTILITY ---------- Large Storage Unit System Shield System Shield > --- WEAPON ----------- Light Assault Rifle > --- INVENTORY -------- Small Storage Unit Visual Processing Unit Sensor Array Terrain Scan Processor Tractor Beam Field Recycling Unit Improved Grenade Launcher Welding Torch [Rating: 13] Favorites ----------- Power Ion Engine Engine Ion Engine Propulsion Light Treads Treads Light Treads Flight Unit VTOL Module Utility Large Storage Unit Device Sensor Array Storage Large Storage Unit Hackware System Shield Protection Utility Shielding Weapon Light Assault Rifle Energy Gun Medium Laser Ballistic Gun Light Assault Rifle Build | -11 -10 -9 -9 ------- Run | Yrd Mat Mat Sto Slots Evolved 2 | . . 2 . Power . | . . . . Propulsion . | . . . . Utility 2 | . . 2 . Weapon . | . . . . Parts Attached 21 | 6 3 8 4 Power 3 | 1 1 1 . Engine 3 | 1 1 1 . Core . | . . . . Reactor . | . . . . Propulsion 4 | 2 . 2 . Treads 2 | 2 . . . Leg . | . . . . Wheel . | . . . . Hover . | . . . . Flight 2 | . . 2 . Utility 9 | 1 2 2 4 Device 3 | . 1 . 2 Storage 2 | 1 1 . . Processor . | . . . . Hackware 2 | . . . 2 Protection 2 | . . 2 . Artifact . | . . . . Weapon 5 | 2 . 3 . Energy Gun 3 | 1 . 2 . Energy Cannon . | . . . . Ballistic Gun 2 | 1 . 1 . Ballistic Cannon . | . . . . Launcher . | . . . . Special Weapon . | . . . . Impact Weapon . | . . . . Slashing Weapon . | . . . . Piercing Weapon . | . . . . Special Melee Weapon . | . . . . Unidentified Prototypes . | . . . . Parts Lost 13 | . . 7 6 Power 1 | . . 1 . Propulsion 4 | . . 2 2 Utility 4 | . . 2 2 Weapon 4 | . . 2 2 Highest Loss Streak 6 | . . 6 4 To Critical Strikes . | . . . . Average Slot Usage (%) 86 | . 97 92 55 Engine 9 | . 13 8 5 Treads 17 | . 28 17 . Flight 4 | . . 2 14 Device 9 | . 11 9 5 Storage 10 | . 14 11 5 Hackware 1 | . . . 7 Protection 11 | . . 20 4 Energy Gun 12 | . 14 13 4 Ballistic Gun 9 | . 14 8 8 Peak Build Rating 13 | 6 7 12 13 Average Rating 8 | 4 6 9 8 On Entrance 5 | . 6 7 9 Naked Turns . | . . . . Heaviest Build 33 | 11 29 33 29 Greatest Support 40 | 40 40 40 8 Greatest Overweight (x) 8 | . . 8 3 Average Overweight (x) . | . . . . Largest Inventory Capacity 15 | 8 15 15 15 Average Capacity 13 | 7 14 15 9 Most Carried 13 | 4 8 13 10 Average Carried 7 | 1 5 9 6 Final Capacity 15 | 8 15 15 5 Final Carried 10 | 2 8 10 4 Class Distribution -------------------- 100% | Mutant Dominant Class ---------------- Mutant | -10/Materials Mutant | -9/Materials Mutant | -9/Storage Resources | -11 -10 -9 -9 ----------- Run | Yrd Mat Mat Sto Matter Collected 355 | 171 103 56 25 Remotely . | . . . . Salvage Created 278 | . 103 175 . Parts 15 | . 6 9 . Haulers Intercepted . | . . . . Recyclers Shooed . | . . . . Parts Field Recycled . | . . . . Retrieved Matter . | . . . . Parts Self-Destructed . | . . . . Prevented . | . . . . Kills | -11 -10 -9 -9 ------- Run | Yrd Mat Mat Sto Combat Hostiles Destroyed 7 | . 2 5 . Guns 6 | . 2 4 . Classes Destroyed 4 | . 2 2 . Worker 1 | . 1 . . Swarmer 2 | . . 2 . Grunt 4 | . 2 2 . Sentry 1 | . . 1 . Best Kill Streak 3 | . 2 3 . Combat Bots Only 3 | . 2 3 . Max Kills in Single Turn 1 | . 1 1 . Gunslinging . | . . . . Exploded . | . . . . Melee . | . . . . Uniques/NPCs Destroyed . | . . . . Combat | -11 -10 -9 -9 -------- Run | Yrd Mat Mat Sto Hostile Shots Fired 154 | . 8 102 44 Missed 48 | . . 26 22 Damage Taken 1367 | . 108 888 371 Core 434 | . 25 239 170 Absorbed by Shields . | . . . . Redirected to Shielding 82 | . . 82 . Core Remaining (%) 95 | 100 90 . . Volleys Fired 26 | . 6 15 5 Largest 2 | . 2 2 1 Hottest 106 | . 70 106 20 Shots Fired 47 | . 12 30 5 Gun 47 | . 12 30 5 Cannon . | . . . . Launcher . | . . . . Special . | . . . . Kinetic 13 | . 6 2 5 Thermal 30 | . 6 24 . Explosive . | . . . . Electromagnetic 4 | . . 4 . Robot Hit Streak 11 | . 8 11 . Robot Miss Streak 4 | . . 4 . Penetration Max . | . . . . Secondary Targets 2 | . . 2 . Max Gunslinging Chain 1 | . . 1 . Shots Hit Robots 29 | . 8 21 . Core Hits 17 | . 7 9 1 Critical Kills . | . . . . Critical Parts Destroyed . | . . . . Critical Strikes 1 | . . 1 . Burn 1 | . . 1 . Melee Attacks . | . . . . Impact . | . . . . Slashing . | . . . . Piercing . | . . . . Sneak Attacks . | . . . . Combat Hostiles . | . . . . Follow-up Attacks . | . . . . Damage Inflicted 376 | . 96 267 13 Guns 350 | . 83 267 . Cannons . | . . . . Explosions . | . . . . Melee . | . . . . Ramming 26 | . 13 . 13 Kinetic 37 | . 22 15 . Thermal 291 | . 61 230 . Explosive . | . . . . Electromagnetic 22 | . . 22 . Impact . | . . . . Slashing . | . . . . Piercing . | . . . . Highest Corruption 11 | . . . 11 Average Corruption 10 | . . . 10 Corruption Purged . | . . . . Corruption Blocked . | . . . . Effects 7 | . . . 7 Message Errors 2 | . . . 2 Matter Fused 2 | . . . 2 Energy Discharges 3 | . . . 3 Overload Shots . | . . . . Overflow Damage . | . . . . Projectiles . | . . . . Explosions . | . . . . Melee . | . . . . Knockbacks . | . . . . Impact . | . . . . Kinetic . | . . . . Secondary . | . . . . Self-Inflicted Damage 5 | . . . 5 Shots . | . . . . Rammed 6 | . 1 . 5 Targets Rammed 6 | . 1 . 5 Kicked . | . . . . Crushed . | . . . . Highest Temperature 210 | . 113 210 . Average Temperature 62 | . 45 68 . Received Heat Transfer 441 | . 60 300 81 Siege Activations . | . . . . Robots Corrupted . | . . . . Combat Hostiles . | . . . . Parts Fried . | . . . . Impact Corruptions . | . . . . Robots Melted 1 | . . 1 . Combat Hostiles 1 | . . 1 . Parts Melted 3 | . . 3 . Heat Transferred 888 | . 185 703 . Parts Sabotaged . | . . . . Parts Stolen . | . . . . Parts Stripped . | . . . . Power Chain Reactions . | . . . . Alert | -11 -10 -9 -9 ------- Run | Yrd Mat Mat Sto Peak Influence 235 | . 62 110 235 Initial 46 | . . 26 46 Average 50 | . 41 46 91 Maximum Alert Level 1 | . . . 1 Low Security (%) 98 | 100 100 100 90 Level 1 1 | . . . 9 Level 2 . | . . . . Level 3 . | . . . . Level 4 . | . . . . Level 5 . | . . . . High Security . | . . . . Max Security . | . . . . Squads Dispatched 5 | . . 2 3 Investigation 2 | . . 1 1 Extermination . | . . . . Reinforcement 3 | . . 1 2 Assault . | . . . . Garrison . | . . . . Intercept . | . . . . Searches Triggered . | . . . . Construction Impeded . | . . . . Haulers Reinforced . | . . . . Active Scanning Responses . | . . . . Cargo Convoy Interrupts . | . . . . Stealth | -11 -10 -9 -9 --------- Run | Yrd Mat Mat Sto Distress Signals 2 | . . . 2 Communications Jammed . | . . . . Distress Signals . | . . . . Times Spotted 28 | . 2 8 18 Peak Tracking Total 12 | . 2 4 12 Tactical Retreats 7 | . . 1 6 Traps | -11 -10 -9 -9 ------- Run | Yrd Mat Mat Sto Traps Triggered 1 | . . 1 . Indirectly . | . . . . Trap Hack Attempts . | . . . . Triggered . | . . . . Disarmed . | . . . . Reprogrammed . | . . . . Reused . | . . . . Traps Extracted . | . . . . Installed . | . . . . Triggered . | . . . . Machines | -11 -10 -9 -9 ---------- Run | Yrd Mat Mat Sto Machines Disabled . | . . . . Max in Single Turn . | . . . . Machines Repaired . | . . . . Machines Dismantled . | . . . . Machines Sabotaged . | . . . . Overloaded Fab Kills . | . . . . Hacking | -11 -10 -9 -9 --------- Run | Yrd Mat Mat Sto Machines Accessed 10 | . 3 3 4 Terminals 7 | . 1 2 4 Fabricators . | . . . . Repair Stations . | . . . . Recycling Units 3 | . 2 1 . Scanalyzers . | . . . . Garrison Access . | . . . . Total Hacks 19 | . 3 4 12 Successful 10 | . 3 4 3 Failed 9 | . . . 9 Catastrophic 3 | . . . 3 Database Lockouts . | . . . . Manual 1 | . . 1 . Terminals 16 | . 1 3 12 Fabricators . | . . . . Repair Stations . | . . . . Recycling Units 3 | . 2 1 . Scanalyzers . | . . . . Garrison Access . | . . . . Terminal Hacks 7 | . 1 3 3 Open Door 2 | . . . 2 Branch Access Points 1 | . 1 . . Emergency Access Points 1 | . . 1 . Recall Investigation 1 | . . 1 . Zone Layout 2 | . . 1 1 Fabricator Hacks . | . . . . Repair Station Hacks . | . . . . Recycling Unit Hacks 3 | . 2 1 . Report Inventory 3 | . 2 1 . Scanalyzer . | . . . . Garrison Access Hacks . | . . . . Unauthorized Hacks . | . . . . Terminals . | . . . . Fabricators . | . . . . Repair Stations . | . . . . Recycling Units . | . . . . Scanalyzers . | . . . . Garrison Access . | . . . . Data Cores Recovered . | . . . . Used . | . . . . Hacking Detections 3 | . . . 3 Full Trace Events 1 | . . . 1 Feedback Events . | . . . . Feedback Blocked . | . . . . Robot Schematics Acquired . | . . . . Robots Built . | . . . . Authchips . | . . . . Time . | . . . . Total Robot Build Rating . | . . . . Part Schematics Acquired . | . . . . Parts Built . | . . . . Authchips . | . . . . Time . | . . . . Total Part Build Rating . | . . . . Parts Repaired . | . . . . Time . | . . . . Parts Recycled . | . . . . Recycled Matter . | . . . . Retrieved Matter . | . . . . Retrieved Components . | . . . . Parts Scanalyzed . | . . . . Part Schematics Acquired . | . . . . Parts Damaged . | . . . . Bothacking | -11 -10 -9 -9 ------------ Run | Yrd Mat Mat Sto Used RIF Installer . | . . . . Robots Hacked . | . . . . Non-combat . | . . . . Combat . | . . . . Robot Hacks Applied . | . . . . Relay Couplers Released . | . . . . Fabnet Peak Effective % . | . . . . Robots Rewired . | . . . . Allies Hacked . | . . . . Hacks Repelled . | . . . . Allies | -11 -10 -9 -9 -------- Run | Yrd Mat Mat Sto Total Allies . | . . . . Largest Group . | . . . . Highest-Rated Group . | . . . . Highest-Rated Ally . | . . . . Total Orders . | . . . . Ally Attacks . | . . . . Total Damage . | . . . . Kills . | . . . . Allies Corrupted . | . . . . Allies Melted . | . . . . Intel | -11 -10 -9 -9 ------- Run | Yrd Mat Mat Sto Robot Analysis Total . | . . . . Derelict Logs Recovered . | . . . . Drone Launches 14 | . . . 14 Drone Recoveries 2 | . . . 2 Exploration | -11 -10 -9 -9 ------------- Run | Yrd Mat Mat Sto Turns Passed 1388 | 81 386 680 241 Spaces Moved 899 | 47 219 345 288 Core 47 | 6 . 2 39 Treads 569 | 41 219 309 . Legs . | . . . . Wheels . | . . . . Hover . | . . . . Flight 283 | . . 34 249 Fastest Speed 35 | 50 160 160 35 Average Speed 137 | 145 160 174 73 Slowest Speed 450 | 160 160 450 274 Overloaded Moves . | . . . . Propulsion Burnouts . | . . . . Robots Hopped 9 | . . . 9 Cave-ins Triggered . | . . . . Exploration Rate (%) 31 | 5 44 29 49 Regions Visited 3 Branch Regions 1 Pre-discovered Areas . | . . . . Known Exits Taken . | . . . . Unknown Exits Taken 3 | 1 1 1 . Scrap Searched . | . . . . Spaces Dug . | . . . . Terrain Destroyed . | . . . . Melee . | . . . . Projectile . | . . . . AOE . | . . . . Terrain Rammed . | . . . . Walls Destroyed . | . . . . Machines Disabled . | . . . . Actions | -11 -10 -9 -9 --------- Run | Yrd Mat Mat Sto Total 1002 | 60 243 394 305 Wait 25 | . 6 18 1 Move 879 | 46 218 344 271 Hop 8 | . . . 8 Pick Up 27 | 8 8 9 2 Fast Attach . | . . . . Attach 19 | 6 2 7 4 Detach . | . . . . Swap 2 | . 1 1 . Drop 4 | . 1 . 3 Fire 26 | . 6 15 5 Melee . | . . . . Ram 5 | . . . 5 Kick . | . . . . Crush 1 | . 1 . . Escape Stasis . | . . . . Rewire . | . . . . Trap . | . . . . Miscellaneous 6 | . . . 6 Route ------- -11/Scrapyard -10/Materials (discovered 2 exits: *Mat / Min) -9/Materials -9/Storage History --------- Turn | Location | Event 6 | -11/Scrapyard | Discovered new exit (range 15) 82 | -11/Scrapyard | Entered Materials 315 | -10/Materials | Build established: Mutant 327 | -10/Materials | Identified exit to Mines 447 | -10/Materials | Discovered new exit (range 12) 468 | -10/Materials | Entered another Materials area 468 | -9/Materials | Evolved 2 slots: Utility x2 969 | -9/Materials | Discovered new exit (range 14) 1035 | -9/Materials | Core integrity fell below 50% 1072 | -9/Materials | Lost 6 parts (2n2u2w) 1148 | -9/Materials | Entered Storage 1255 | -9/Storage | System corruption reached 10% 1287 | -9/Storage | Lost 4 parts (1n2u1w) 1327 | -9/Storage | Core integrity fell below 20% 1389 | -9/Storage | Destroyed by Y-45 Defender with Heavy Assault Rifle Last Messages --------------- 01374_ Drone suffers critical hit (Burn). 01374_ Drone destroyed. 01375_ K-01 Serf collects debris. 01376_ Drone released from Drone Bay. 01378_ K-01 Serf collects debris. 01378_ Drone destroyed. 01378_ U-05 Engineer destroyed. 01379_ Slammed into K-01 Serf. 01379_ Destabilizing: Core damaged (-4). 01380_ System corrupted: Energy discharge (-24). 01380_ Acquired 6 matter. 01380_ Drone suffers critical hit (Destroy). 01380_ Drone retrieved by Drone Bay. 01381_ K-01 Serf sends out distress signal. 01381_ Drone destroyed. 01381_ Y-45 Defender suffers critical hit (Burn). 01383_ Drone destroyed. 01384_ Acquired 19 matter. 01387_ Slammed into Y-45 Defender. 01387_ Destabilizing: Core damaged (-12). Map ----- +----------------------------------------------------+ | ????????????????????????????#!!" + ######## | | ????????????????????????????#! # #???##*# | | ????????????????????????????#!!" # #???## # | | ????????????????????????????###### #???## T | | ??????????????????????????????#### ######+# | | ??????????????????????????????##?# | | ?????????????????????????????? ###+##+######## | | ?????????????????????????????? # ###### | | ?????????????????????????????? # """ ""# | | ?????????????????????????????? # """ Y"# "" | | ???????????????????????????? # """ ""# " | | ???????????????????????????? +?? ] #?# ?? | | ???????????????????????????? #??"" #?# ?? | | ???????????????????????????? #?""" #?# "" | | ???????????????????????????# #??"" #?# | | ???????????????????????????# #??? ?# | | ???????????????????????????# ?############ | | ???????????????????????????# # ###+ | | ?????????????#?????????????# ## || "T????# | | ?????????????# ????????????# ## || ??????# | | ?????????????# ???????????# ## ????????# | | ????????????## ??????????# ##+#####/##### | | ????????????# ########## =|kYYY | | ???????"" # % Y##### | | ???????"" + %Yr Y r #???# | | ????????????# g @nY % #???# | | ????????????# ####/######+###+##??# ##+##+ | | ????????????###+???# nYT## #??# ## | | ???????????????????##n#### """" #??# ## | | ???????????????????#!| #?# "??? #??# ## | | ???????????????????#!%!#?# "??? #??# ## | | ???????????????????#! !#?# "??? #??# ###### | | ???????????????????#! !#?# "??? #??# #?# | | ???????????????????#####?# "??? #??# ### | | ?????????????????????????# ????#??# + | | ???????????????????????#############??# # "" | | ???????????????????????# #### # "" | | ???????????????????????# + + "" | | ???????????????????????# ? ######## | | ???????????????????????# #??????# "" | | ???????????????????????# #??????# "" | | ???????????????????????# #??????# "" | | ???????????????????????# #????### | | ?????????????????##############+#### ##### | | ?????????????? | | ?????????????? | | ?????????????? | | ????????????????#################### ##### | | ???????????????????????????????????#######???? | | | +----------------------------------------------------+ Best States ------------- Heat Dissipation 28 Energy Generation 10 Energy Capacity 250 Matter Stores 299 Matter Capacity 300 Sight Range 16 Robot Scan Range 14 Terrain Scan Density 10 Utility Shielding 33 Weapon Shielding 33 Evasion (%) 63 Recoil Reduction 2 Defensive Hacking 20 Item Schematics ----------------- None Robot Schematics ------------------ None Fabricated ------------ Nothing Alien Tech Used ----------------- None Achievements -------------- GoHome() Release The Drones! Challenges ------------ None Game ------ Seed NeutronNetworkWell Manual? 0 Play Time 00:20:48 Cumulative 15.6 hours Start 2025.03.02 @ 18:22:59 End 2025.03.02 @ 18:44:50 Sessions 1 Manual Loads 0 Difficulty Rogue Special Mode None Game No. 24 Rogue 24 Adventurer 0 Explorer 0 Win Type - Total 0 Types 0/0/0/0/0/0/0/0/0 Lore% 6 Gallery% 17 Achievement% 17 Wizard Run 0 Options --------- Layout 0 ASCII 0 Keyboard 0 Movement Mouse Keybinds 0 Fullscreen 1 Font 18/SmallcapsGlow Map View 76x50 Zoom Use 74% Tactical HUD 1 Map Filters NONE Filters NONE Steam 1 RUN: 6639faae-19f9-4e21-aec0-6871442fe96a